bitfinex-derivatives/quotes_ETHF0:USTF0_20250114
["timestamp","ask_amount","ask_price","bid_price","bid_amount"]
[1736889031094,0.30985,3228.8,3228.7,3.2078]
[1736889031389,0.30983,3229.0,3228.7,3.2078]
[1736889031588,0.30983,3229.0,3228.8,0.30984]
[1736889032280,0.4687,3229.2,3228.8,0.30984]
[1736889032487,0.30984,3228.9,3228.8,0.30984]
[1736889032694,0.30983,3229.0,3228.9,0.30984]
[1736889032887,3.36277594,3229.1,3228.8,0.30984]
[1736889033188,0.30985,3228.8,3228.7,3.2078]
[1736889033396,0.30985,3228.8,3228.7,3.51766]
[1736889033786,0.30985,3228.9,3228.7,3.51766]
[1736889034389,0.79533,3229.0,3228.8,0.30984]
[1736889034583,0.79533,3229.0,3228.7,3.2078]
[1736889034584,0.79533,3229.0,3228.9,0.30984]
[1736889034789,0.4855,3229.0,3228.7,3.2078]
[1736889034993,0.30984,3228.9,3228.7,3.51765]
[1736889035484,0.4855,3229.0,3228.7,3.51765]
[1736889035690,0.30984,3228.9,3228.7,3.51765]
[1736889036295,0.79533,3229.0,3228.8,0.30984]
[1736889036501,0.79533,3229.0,3228.9,40.8]
[1736889036796,0.79533,3229.0,3228.9,41.10984]
[1736889039393,0.79533,3229.0,3228.9,40.8]
[1736889039595,7.4040632,3229.0,3228.9,40.8]
[1736889039796,7.4040632,3229.0,3228.3,4.4988]
[1736889039797,0.30989,3228.4,3228.1,0.30991]
[1736889039994,0.30992,3228.1,3227.9,4.45513]
[1736889040299,0.30992,3228.1,3228.0,40.8]
[1736889040593,0.9417,3228.3,3228.0,40.8]
[1736889040594,0.9417,3228.3,3228.1,0.30991]
[1736889040990,0.3099,3228.2,3228.1,0.30991]
[1736889041589,1.291,3229.1,3228.0,40.8]
[1736889041793,0.30988,3228.5,3228.3,0.30989]
[1736889042194,0.30991,3228.1,3228.0,40.8]
[1736889043598,0.4713,3228.3,3227.9,3.2078]
[1736889043794,0.30992,3228.1,3227.9,3.51773]
[1736889044188,0.30992,3228.1,3227.9,44.31773]
[1736889044798,0.30992,3228.0,3227.9,44.0078]
[1736889049202,0.76502,3228.1,3228.0,0.30992]
[1736889049496,0.30992,3228.0,3227.9,44.0078]
[1736889050799,0.30992,3228.0,3227.9,40.8]
[1736889060212,0.4888,3228.2,3227.9,40.8]
[1736889060507,0.30991,3228.2,3228.1,0.3099]
[1736889060700,0.30992,3228.0,3227.9,44.0078]
[1736889061305,0.30992,3228.0,3227.9,44.31773]
[1736889062013,0.30992,3228.0,3227.9,44.0078]
[1736889062213,0.30992,3228.0,3227.9,44.31773]
[1736889062820,0.30992,3228.0,3227.9,44.0078]
[1736889063022,0.30992,3228.0,3227.9,40.8]
[1736889064417,0.30992,3228.0,3227.9,41.10993]
[1736889064826,0.4677,3228.4,3227.9,44.0078]
[1736889065021,0.30988,3228.5,3228.4,0.30988]
[1736889065220,0.30991,3228.3,3228.2,0.3099]
[1736889065432,0.30991,3228.2,3228.1,0.30991]
[1736889065625,0.30991,3228.1,3228.0,0.80302]
[1736889066130,0.30991,3228.1,3228.0,0.4931]
[1736889066828,0.30992,3228.0,3227.9,44.0078]
[1736889070337,0.30992,3228.0,3227.9,40.8]
[1736889077635,0.4598,3228.2,3227.9,44.0078]
[1736889077842,0.30992,3228.0,3227.9,44.0078]
[1736889079136,0.30992,3228.0,3227.9,3.2078]
[1736889079734,1.23457,3228.2,3227.7,40.8]
[1736889079931,0.30994,3227.8,3227.7,40.8]
[1736889082331,0.30999,3227.3,3227.0,3.99898855]
[1736889082631,0.31001,3227.1,3227.0,0.002]
[1736889082830,0.31001,3227.1,3227.0,40.802]
[1736889083037,3.71757507,3227.1,3227.0,40.802]
[1736889083233,4.63737507,3227.1,3227.0,40.802]
[1736889083542,0.452,3227.1,3227.0,41.11202]
[1736889083737,0.80041,3227.2,3227.1,0.31001]
[1736889083738,0.31001,3227.2,3227.1,0.31001]
[1736889084138,0.31001,3227.2,3227.1,0.4704]
[1736889085143,0.31001,3227.2,3227.0,44.0098]
[1736889085144,0.31001,3227.1,3227.0,44.0098]
[1736889086544,0.31001,3227.1,3227.0,44.31982]
[1736889087439,3.22932542,3227.4,3227.0,44.0098]
[1736889087638,3.2078,3228.0,3227.0,44.0098]
[1736889087845,0.4889,3228.2,3227.6,3.2078]
[1736889088048,0.4889,3228.2,3227.8,0.30994]
[1736889088344,0.30992,3228.0,3227.9,40.8]
[1736889091636,0.30992,3228.0,3227.9,41.10993]
[1736889092547,0.30992,3228.0,3227.9,40.8]
[1736889093039,0.4889,3228.2,3227.6,3.2078]
[1736889093241,0.30995,3227.7,3227.6,3.2078]
[1736889093547,3.66156279,3227.7,3227.6,3.2078]
[1736889096143,0.30998,3227.4,3227.3,0.30999]
[1736889097338,0.4529,3227.6,3227.2,41.11]
[1736889097339,0.30999,3227.3,3227.2,41.11]
[1736889097540,0.30999,3227.3,3227.2,40.8]
[1736889097939,0.30999,3227.3,3227.2,41.11]
[1736889098138,0.47375336,3227.6,3227.5,0.30997]
[1736889098449,12.61391448,3227.9,3227.2,41.57499]
[1736889098450,12.61391448,3227.9,3227.4,3.2078]
[1736889098640,12.61391448,3227.9,3227.6,0.30996]
[1736889098641,0.30996,3227.7,3227.6,0.30996]
[1736889099343,0.30994,3227.8,3227.7,0.30994]
[1736889100050,0.4916,3228.1,3227.5,0.77494]
[1736889100251,0.30991,3228.1,3227.9,0.30993]
[1736889100544,0.30991,3228.1,3228.0,1.25082]
[1736889100945,0.30991,3228.1,3228.0,42.05082]
[1736889101945,0.30991,3228.1,3228.0,40.8]
[1736889102654,0.30698932,3228.1,3228.0,40.8]
[1736889102851,0.30698932,3228.1,3228.0,41.10992]
[1736889103152,0.3099,3228.3,3228.2,0.3099]
[1736889103350,0.3099,3228.2,3228.1,0.4504]
[1736889104955,0.9642,3228.5,3228.1,0.76031]
[1736889105251,0.77928,3228.5,3228.4,0.30989]
[1736889106051,0.30989,3228.4,3228.2,4.1326]
[1736889106251,0.30989,3228.4,3228.2,4.4425]
[1736889106558,0.30989,3228.4,3228.2,3.9818]
[1736889106856,0.30989,3228.3,3228.2,3.9818]
[1736889107452,0.30989,3228.3,3228.2,3.6719]
[1736889107651,0.4694,3228.5,3228.2,3.6719]
[1736889107957,0.30989,3228.4,3228.3,0.30989]
[1736889108157,13.41303296,3228.8,3228.7,0.30986]
[1736889108355,12.17058296,3228.8,3228.7,0.30986]
[1736889108651,12.17058296,3228.8,3228.7,1.59986]
[1736889108853,0.4815,3229.6,3228.7,1.7471]
[1736889109051,0.3098,3229.3,3229.2,3.2078]
[1736889109246,0.3098,3229.3,3229.2,44.0078]
[1736889112562,0.3098,3229.3,3229.2,3.2078]
[1736889112858,0.3098,3229.3,3229.2,44.0078]
[1736889113160,0.3098,3229.3,3229.2,3.2078]
[1736889114360,0.3098,3229.3,3229.2,3.51761]
[1736889116761,0.3098,3229.3,3229.2,3.2078]
[1736889117759,0.3098,3229.3,3229.1,44.31761]
[1736889117959,0.30981,3229.2,3229.1,44.31761]
[1736889119661,0.30981,3229.2,3229.1,44.0078]
[1736889120457,0.30981,3229.2,3229.1,44.31762]
[1736889122260,0.30981,3229.2,3229.1,44.0078]
[1736889122453,0.30981,3229.2,3229.1,3.2078]
[1736889122655,0.30981,3229.2,3228.3,0.24247323]
[1736889122656,1.08434,3229.2,3228.5,3.51767]
[1736889122858,0.30987,3228.6,3228.5,3.51767]
[1736889123162,0.30987,3228.6,3228.5,44.31767]
[1736889123464,0.30986,3228.7,3228.6,0.30986]
[1736889124563,0.30985,3228.8,3228.7,0.30985]
[1736889125059,0.30986,3228.7,3228.6,0.30986]
[1736889126059,0.4901,3228.9,3228.8,0.30985]
[1736889126060,0.79994,3228.9,3228.8,0.30985]
[1736889126255,0.30985,3228.8,3228.7,0.30985]
[1736889127264,0.4901,3228.9,3228.5,44.0078]
[1736889127566,0.30986,3228.7,3228.6,0.30986]
[1736889128060,0.30985,3228.8,3228.7,0.30985]
[1736889128859,0.4901,3228.9,3228.5,44.0078]
[1736889129058,0.30987,3228.6,3228.5,44.31767]
[1736889130562,0.4901,3228.9,3228.8,0.30985]
[1736889130766,0.4957,3229.0,3228.9,0.30984]
[1736889130964,0.4957,3229.0,3228.6,0.463]
[1736889131163,0.4957,3229.0,3228.5,3.2078]
[1736889131164,0.4957,3229.0,3228.5,3.51767]
[1736889131364,0.30987,3228.6,3228.5,3.2078]
[1736889131566,0.30987,3228.6,3228.5,3.51767]
[1736889132066,0.30987,3228.6,3228.5,44.0078]
[1736889132563,0.30987,3228.6,3228.5,44.31768]
[1736889133764,0.30987,3228.6,3228.5,44.0078]
[1736889133966,0.30987,3228.6,3228.5,44.31768]
[1736889135564,0.30987,3228.6,3228.5,44.0078]
[1736889136060,0.30987,3228.6,3228.5,44.31768]
[1736889136256,1.27028,3229.0,3228.5,44.31768]
[1736889136257,0.30986,3228.7,3228.5,44.31768]
[1736889136567,0.4782,3228.6,3228.5,44.31768]
[1736889136763,0.9753,3228.6,3228.5,44.31768]
[1736889140072,0.4957,3229.0,3228.9,0.30984]
[1736889140275,0.4787,3229.3,3228.8,0.77461]
[1736889140468,0.30981,3229.2,3229.1,0.30981]
[1736889140867,0.77861,3229.2,3229.1,0.30981]
[1736889141571,0.4688,3229.2,3228.5,44.2523116]
[1736889141765,0.77455,3229.1,3228.5,44.0078]
[1736889141965,0.30985,3228.8,3228.7,0.30986]
[1736889142268,1.24334,3229.2,3228.5,44.0078]
[1736889142470,0.4688,3229.2,3228.9,3.2078]
[1736889142666,0.4787,3229.3,3229.0,1.289]
[1736889142974,0.4782,3229.5,3229.4,0.30979]
[1736889143161,0.4782,3229.5,3229.4,3.51759]
[1736889143370,0.9475,3229.9,3229.8,0.30975]
[1736889143670,0.30976,3229.8,3229.6,0.30976]
[1736889143866,0.30978,3229.5,3229.4,3.2078]
[1736889145670,0.4695,3229.6,3229.5,0.30978]
[1736889146774,0.4688,3229.9,3229.8,0.30975]
[1736889147075,12.12917174,3230.4,3230.3,0.3097]
[1736889147765,0.30968,3230.6,3230.4,0.30969]
[1736889148075,3.4415435,3230.7,3230.4,0.30969]
[1736889148271,0.30968,3230.5,3230.3,0.3097]
[1736889148469,0.30968,3230.5,3230.4,40.8]
[1736889149776,0.30968,3230.5,3230.4,41.10969]
[1736889150674,3.4415435,3230.7,3230.2,3.2078]
[1736889150983,3.4415435,3230.7,3230.6,0.30967]
[1736889151474,3.7512035,3230.7,3230.6,0.30967]
[1736889152775,3.4415435,3230.7,3230.3,40.8]
[1736889152974,0.30969,3230.5,3230.4,0.30969]
[1736889153775,3.4415435,3230.7,3230.3,0.3097]
[1736889153776,0.3097,3230.4,3230.3,0.3097]
[1736889153976,0.4836,3230.4,3230.3,0.3097]
[1736889154867,0.7933,3230.4,3230.2,44.0078]
[1736889155071,0.7933,3230.4,3230.2,44.31751]
[1736889156878,0.30972,3230.1,3229.9,0.30974]
[1736889157272,0.30972,3230.1,3230.0,40.8]
[1736889158078,0.30972,3230.1,3230.0,41.10973]
[1736889158680,0.4836,3230.4,3230.0,41.10973]
[1736889158879,0.30972,3230.2,3230.0,41.10973]
[1736889159477,0.30972,3230.2,3230.0,41.10972]
[1736889160771,0.4836,3230.4,3230.0,41.10972]
[1736889160772,0.30972,3230.1,3230.0,41.10972]
[1736889160977,0.79062,3230.1,3230.0,40.8]
[1736889161182,0.4809,3230.1,3230.0,41.10973]
[1736889161481,0.79062,3230.1,3230.0,41.10973]
[1736889161682,0.4809,3230.1,3230.0,41.10973]
[1736889162579,0.79062,3230.1,3230.0,40.8]
[1736889162779,1.24382,3230.1,3230.0,40.8]
[1736889163179,0.9341,3230.1,3230.0,41.10973]
[1736889164175,1.24382,3230.1,3230.0,41.10973]
[1736889164977,0.9341,3230.1,3230.0,41.10973]
[1736889167479,1.24382,3230.1,3230.0,40.8]
[1736889167686,1.24382,3230.1,3229.6,0.4871]
[1736889167687,4.16291541,3230.1,3229.4,0.30979]
[1736889167881,0.30979,3229.4,3229.2,0.3098]
[1736889168077,0.9272,3229.3,3228.9,3.2078]
[1736889168275,0.30983,3229.0,3228.9,3.51764]
[1736889168681,0.30982,3229.1,3229.0,0.30983]
[1736889169386,0.30982,3229.1,3229.0,41.10983]
[1736889169584,0.30982,3229.1,3229.0,40.8]
[1736889170179,0.30982,3229.1,3229.0,41.10982]
[1736889170383,0.30981,3229.2,3229.0,40.8]
[1736889170686,1.4169,3229.3,3229.0,41.10982]
[1736889170880,1.4169,3229.3,3229.2,0.30981]
[1736889172086,1.4169,3229.3,3228.9,3.2078]
[1736889172289,0.30983,3229.0,3228.9,3.2078]
[1736889172484,0.30983,3229.0,3228.9,3.51764]
[1736889172684,0.30983,3229.0,3228.9,3.2078]
[1736889173094,1.4169,3229.3,3228.9,3.51764]
[1736889173287,1.4169,3229.3,3229.0,0.30982]
[1736889173288,0.30982,3229.1,3229.0,0.30982]
[1736889173590,0.30982,3229.1,3229.0,40.8]
[1736889184004,0.30982,3229.1,3229.0,41.10983]
[1736889184795,0.30982,3229.1,3229.0,40.8]
[1736889185103,0.30982,3229.1,3229.0,41.10983]
[1736889185598,0.30982,3229.1,3229.0,40.8]
[1736889186204,0.30982,3229.1,3229.0,41.10983]
[1736889187303,0.30982,3229.1,3229.0,40.8]
[1736889187598,0.30984,3228.9,3228.8,3.2078]
[1736889188003,0.30984,3228.9,3228.8,44.0078]
[1736889188304,0.30984,3228.9,3228.8,40.8]
[1736889190503,0.30984,3228.9,3228.4,3.6737]
[1736889190504,1.4169,3229.3,3228.4,3.6737]
[1736889190697,0.4767,3228.8,3228.5,0.30987]
[1736889190897,0.30986,3228.7,3228.5,0.30987]
[1736889191098,0.30986,3228.7,3228.6,41.10987]
[1736889191294,0.30986,3228.7,3228.6,40.8]
[1736889191800,1.29306,3228.7,3228.6,40.8]
[1736889192001,1.29306,3228.7,3228.6,41.10987]
[1736889192596,1.29306,3228.7,3228.6,40.8]
[1736889193295,1.29306,3228.7,3228.6,41.10987]
[1736889193496,1.29306,3228.7,3228.6,40.8]
[1736889197305,4.55603498,3228.7,3228.6,40.8]
[1736889197504,0.30992,3228.0,3227.9,3.2078]
[1736889198107,0.30992,3228.0,3227.9,44.0078]
[1736889200107,0.9314,3228.1,3227.9,44.31773]
[1736889200407,1.24132,3228.1,3227.9,44.31773]
[1736889200707,0.30992,3228.0,3227.9,44.0078]
[1736889203109,0.30992,3228.0,3227.9,3.2078]
[1736889203708,3.72851724,3228.0,3227.9,3.2078]
[1736889204405,3.41859724,3228.0,3227.6,40.8]
[1736889204605,0.30995,3227.7,3227.6,41.10996]
[1736889205395,0.30995,3227.7,3227.6,40.8]
[1736889206302,0.30995,3227.7,3227.4,3.682]
[1736889206303,0.30997,3227.5,3227.4,3.2078]
[1736889206501,0.30997,3227.5,3227.0,0.002]
[1736889206502,0.31001,3227.1,3227.0,0.002]
[1736889209109,0.929,3227.4,3227.0,0.002]
[1736889209311,0.929,3227.4,3227.2,0.31]
[1736889209312,0.30999,3227.3,3227.2,0.31]
[1736889209710,0.31,3227.2,3227.1,0.31001]
[1736889209910,0.30999,3227.3,3227.2,0.31]
[1736889210225,0.30999,3227.3,3227.0,0.002]
[1736889210226,0.31001,3227.1,3227.0,0.002]
[1736889212610,3.76429331,3227.1,3227.0,0.002]
[1736889213112,3.76429331,3227.1,3227.0,40.802]
[1736889218909,3.76429331,3227.1,3227.0,0.002]
[1736889221818,6.97209331,3227.1,3227.0,0.002]
[1736889222012,6.97209331,3227.1,3226.0,3.2078]
[1736889222013,0.77517,3226.6,3226.0,3.2078]
[1736889222215,0.3101,3226.2,3226.1,40.8]
[1736889225213,0.31009,3226.3,3226.2,0.31009]
[1736889225417,0.31009,3226.3,3226.2,1.24109]
[1736889226217,0.31009,3226.3,3226.2,0.931]
[1736889227816,0.31009,3226.3,3226.2,1.2411]
[1736889228520,0.31009,3226.3,3226.2,0.931]
[1736889230313,0.31009,3226.3,3226.2,0.4773]
[1736889230514,0.3101,3226.2,3226.1,40.8]
[1736889250023,13.66110133,3227.2,3226.1,40.8]
[1736889250024,12.11107133,3227.2,3226.1,40.8]
[1736889250229,0.31002,3227.0,3226.9,3.2078]
[1736889251221,3.87694634,3227.0,3226.9,3.2078]
[1736889252025,4.34199634,3227.0,3226.4,1.286]
[1736889252331,0.31006,3226.6,3226.5,0.31006]
[1736889252831,0.31006,3226.6,3226.5,0.31007]
[1736889253028,0.31006,3226.7,3226.6,0.31005]
[1736889253332,1.4152,3227.1,3226.6,3.2078]
[1736889253635,0.31003,3226.9,3226.7,0.31005]
[1736889253835,0.31003,3226.9,3226.8,0.31004]
[1736889254129,0.4922,3227.1,3227.0,0.31002]
[1736889254736,3.6786,3227.3,3227.1,0.31]
[1736889254737,3.98859,3227.3,3227.1,0.31]
[1736889254925,0.31,3227.2,3227.1,0.31]
[1736889255432,3.6786,3227.3,3227.2,0.31]
[1736889255634,3.2078,3227.3,3227.2,0.31]
[1736889255828,0.4708,3227.7,3227.2,0.4671]
[1736889256133,0.30997,3227.6,3227.4,0.30997]
[1736889256343,12.11107133,3227.8,3227.5,3.2078]
[1736889256530,12.11107133,3227.8,3227.7,0.30995]
[1736889256729,0.30994,3227.9,3227.7,0.30995]
[1736889257131,0.30994,3227.9,3227.5,3.2078]
[1736889257429,1.3576,3228.1,3227.7,0.30995]
[1736889257430,0.30992,3228.0,3227.7,0.30995]
[1736889257833,0.30994,3227.8,3227.7,0.30995]
[1736889258432,1.3576,3228.1,3227.5,3.2078]
[1736889258634,1.3576,3228.1,3227.5,3.51777]
[1736889258635,0.30996,3227.7,3227.5,3.51777]
[1736889258833,0.4805,3227.6,3227.5,3.51777]
[1736889259826,0.4805,3227.6,3227.5,3.2078]
[1736889260034,1.27646,3227.6,3227.5,3.2078]
[1736889261536,0.9665,3227.6,3227.5,3.51777]
[1736889261841,0.9665,3227.6,3227.5,3.2078]
[1736889262038,4.55730603,3227.6,3227.5,3.2078]
[1736889280259,4.55730603,3227.6,3227.5,3.51777]
[1736889280763,4.55730603,3227.6,3227.5,3.2078]
[1736889281958,0.30997,3227.5,3227.4,0.30997]
[1736889282263,0.78777,3227.5,3227.4,0.30997]
[1736889282761,0.30999,3227.4,3227.3,0.30998]
[1736889284060,0.30999,3227.3,3227.2,3.51779]
[1736889292367,0.30999,3227.4,3227.3,0.30999]
[1736889292766,0.30995,3227.8,3227.7,0.30994]
[1736889292958,1.54943,3228.5,3227.0,0.4709]
[1736889292959,0.4551,3228.2,3227.6,3.2078]
[1736889293172,0.30991,3228.1,3228.0,3.2078]
[1736889293470,4.48738714,3228.1,3228.0,44.0078]
[1736889296968,3.54218714,3228.1,3228.0,44.0078]
[1736889297167,4.51318714,3228.1,3228.0,44.31772]
[1736889297369,1.28091,3228.1,3228.0,44.0078]
[1736889298270,1.28091,3228.1,3228.0,44.31772]
[1736889298665,1.28091,3228.1,3228.0,44.0078]
[1736889299071,1.28091,3228.1,3228.0,3.2078]
[1736889301069,0.971,3228.1,3227.9,41.10993]
[1736889301375,0.30992,3228.0,3227.9,41.10993]
[1736889301872,0.30992,3228.0,3227.9,40.8]
[1736889303376,0.30992,3228.0,3227.9,41.10993]
[1736889304571,0.30992,3228.0,3227.9,40.8]
[1736889305269,0.30995,3227.7,3227.6,3.2078]
[1736889305477,0.31,3227.2,3227.1,3.2078]
[1736889305979,3.71119267,3227.2,3227.1,3.2078]
[1736889306780,3.71119267,3227.2,3226.8,0.31004]
[1736889306781,0.31004,3226.8,3226.7,40.8]
[1736889307682,0.31004,3226.8,3226.7,41.11005]
[1736889308974,0.31001,3227.1,3226.7,40.8]
[1736889309181,0.31001,3227.1,3227.0,0.31002]
[1736889309375,3.70173955,3227.1,3227.0,0.31002]
[1736889309775,3.70173955,3227.1,3226.9,0.31002]
[1736889310176,3.70173955,3227.1,3227.0,0.4571]
[1736889310777,12.11107133,3227.2,3227.0,3.6649]
[1736889310969,12.11107133,3227.2,3227.1,0.80581]
[1736889311373,12.11107133,3227.2,3227.1,41.60581]
[1736889311788,0.30996,3227.6,3227.4,0.30997]
[1736889311976,0.30996,3227.6,3227.5,0.459]
[1736889312176,12.11107133,3228.2,3227.5,0.9446]
[1736889312378,12.11107133,3228.2,3227.8,3.2078]
[1736889312686,12.42097133,3228.2,3228.1,0.30991]
[1736889312983,0.30989,3228.4,3228.3,0.30989]
[1736889313184,0.9738,3228.5,3227.9,0.4958]
[1736889313381,3.4715439,3228.4,3228.0,40.8]
[1736889313687,0.30991,3228.1,3228.0,40.8]
[1736889313874,3.4715439,3228.4,3228.0,40.8]
[1736889314074,0.9738,3228.5,3228.0,40.8]
[1736889314280,0.30989,3228.4,3228.1,0.9391]
[1736889314482,12.17255374,3228.7,3228.1,0.9391]
[1736889314780,12.17255374,3228.7,3228.3,3.2078]
[1736889315087,0.30988,3228.4,3228.3,3.2078]
[1736889316378,12.17255374,3228.7,3228.1,0.9391]
[1736889316684,12.17255374,3228.7,3227.9,3.2078]
[1736889316685,0.30992,3228.0,3227.9,3.2078]
[1736889317713,3.79489713,3228.0,3227.9,3.2078]
[1736889318383,0.30996,3227.6,3227.5,40.8]
[1736889318688,3.2078,3227.7,3226.6,3.2078]
[1736889318888,0.9162,3227.5,3226.6,3.2078]
[1736889319188,0.31003,3226.9,3226.8,0.31003]
[1736889319487,0.31004,3226.8,3226.7,41.11004]
[1736889319686,0.31004,3226.9,3226.7,41.11004]
[1736889320282,3.24703229,3227.2,3226.8,0.31004]
[1736889320283,0.31003,3227.0,3226.8,0.31004]
[1736889320589,0.31003,3226.9,3226.7,41.11004]
[1736889321388,0.31003,3226.9,3226.8,0.31004]
[1736889321588,0.31003,3227.0,3226.8,0.31004]
[1736889321790,0.31003,3226.9,3226.7,41.11004]
[1736889323496,3.24703229,3227.2,3226.7,41.11004]
[1736889323693,0.31004,3226.8,3226.7,41.11004]
[1736889324186,0.31004,3226.8,3226.7,40.8]
[1736889325295,0.31004,3226.9,3226.7,40.8]
[1736889325993,0.31004,3226.9,3226.7,41.11004]
[1736889326192,0.31004,3226.8,3226.7,40.8]
[1736889326393,0.31003,3227.0,3226.8,0.31003]
[1736889326611,0.31003,3226.9,3226.8,0.31003]
[1736889327300,0.31003,3226.9,3226.7,41.11004]
[1736889328298,0.31004,3226.8,3226.7,40.8]
[1736889328898,0.31004,3226.8,3226.7,41.11005]
[1736889329298,3.24703229,3227.2,3226.7,41.11005]
[1736889329500,0.31004,3226.9,3226.7,41.11005]
[1736889330201,0.31004,3226.9,3226.8,3.2078]
[1736889332604,0.31004,3226.9,3226.7,41.11005]
[1736889332903,0.31004,3226.9,3226.8,3.2078]
[1736889335999,0.31004,3226.9,3226.8,3.51784]
[1736889338008,0.9162,3227.5,3226.8,3.2078]
[1736889338211,0.30999,3227.3,3227.2,3.2078]
[1736889341408,0.30999,3227.3,3227.2,3.5178]
[1736889341913,0.30999,3227.3,3227.2,3.2078]
[1736889342211,3.72414557,3227.3,3227.2,3.2078]
[1736889342908,0.31004,3226.8,3226.7,44.0078]
[1736889343111,0.31004,3226.8,3226.7,40.8]
[1736889344513,3.81412017,3226.8,3226.7,40.8]
[1736889348608,3.81412017,3226.8,3226.7,41.11005]
[1736889350408,3.81412017,3226.8,3226.7,40.8]
[1736889352607,3.50408017,3226.8,3226.4,0.9721]
[1736889352813,0.31006,3226.6,3226.5,0.31006]
[1736889356312,3.50408017,3226.8,3226.4,0.9721]
[1736889356619,0.31005,3226.7,3226.6,0.31006]
[1736889356817,0.31005,3226.7,3226.6,3.2078]
[1736889357214,12.17255374,3227.7,3226.6,3.2078]
[1736889357413,0.31004,3226.8,3226.7,0.31004]
[1736889358510,0.31003,3226.9,3226.8,0.31004]
[1736889358817,0.31004,3226.8,3226.7,0.31004]
[1736889359315,0.31004,3226.8,3226.6,3.2078]
[1736889359316,0.31003,3226.9,3226.8,0.31004]
[1736889359613,0.31005,3226.7,3226.6,3.2078]
[1736889372036,3.8137205,3226.7,3226.6,3.2078]
[1736889372230,0.31008,3226.4,3226.3,40.8]
[1736889372936,0.31013,3225.8,3225.7,3.2078]
[1736889373444,0.31013,3225.8,3225.7,44.0078]
[1736889374542,1.4377,3226.3,3225.7,44.0078]
[1736889374742,0.31011,3226.1,3226.0,0.31011]
[1736889374942,0.31011,3226.1,3226.0,3.51791]
[1736889376046,0.31011,3226.1,3226.0,3.2078]
[1736889376539,0.9606,3226.3,3226.0,3.2078]
[1736889376740,0.31009,3226.3,3226.2,0.31009]
[1736889377139,4.1523,3226.6,3226.1,0.9238]
[1736889377342,0.31009,3226.3,3226.2,0.31009]
[1736889377646,0.3101,3226.2,3226.1,0.9238]
[1736889378946,4.1523,3226.6,3226.2,0.31009]
[1736889378947,0.31009,3226.3,3226.2,0.31009]
[1736889379942,0.31007,3226.5,3226.4,0.31007]
[1736889380142,0.31007,3226.5,3226.4,3.51787]
[1736889380349,0.31006,3226.6,3226.5,0.31007]
[1736889380646,0.31004,3226.8,3226.7,0.31004]
[1736889380845,0.31003,3227.0,3226.9,0.31002]
[1736889381144,0.31003,3227.0,3226.9,40.8]
[1736889386543,3.98277,3227.4,3226.9,40.8]
[1736889386544,3.2078,3228.3,3226.9,40.8]
[1736889386747,0.9604,3227.8,3227.4,3.2078]
[1736889386949,12.48251374,3227.7,3227.6,0.30996]
[1736889387749,0.30996,3227.7,3227.6,0.30996]
[1736889388447,0.9604,3227.8,3227.7,0.30995]
[1736889388647,15.38035374,3228.3,3228.0,0.30992]
[1736889388849,0.3099,3228.2,3228.0,0.30992]
[1736889389050,15.38035374,3228.3,3227.5,0.77493]
[1736889389353,12.17255374,3228.3,3228.2,3.5177]
[1736889389750,15.38035374,3228.8,3228.2,3.2078]
[1736889389955,12.17255374,3228.8,3228.7,0.30986]
[1736889390355,12.17255374,3228.8,3228.6,3.2078]
[1736889390356,12.17255374,3228.8,3228.6,3.51766]
[1736889390548,12.48240374,3228.8,3228.6,3.2078]
[1736889391153,12.17255374,3228.8,3228.6,3.2078]
[1736889391355,0.4808,3229.0,3228.7,0.30985]
[1736889391356,0.30983,3229.0,3228.7,0.30985]
[1736889392056,0.30983,3229.0,3228.6,3.2078]
[1736889392348,0.30983,3229.0,3228.7,0.30986]
[1736889393050,0.30984,3228.9,3228.7,0.30986]
[1736889393849,0.4731,3229.1,3228.6,3.2078]
[1736889394049,0.4731,3229.1,3228.6,3.51766]
[1736889394256,0.30984,3228.9,3228.6,3.51766]
[1736889394651,0.4731,3229.1,3228.6,3.2078]
[1736889394850,0.78292,3229.1,3228.6,3.2078]
[1736889395055,0.78292,3229.1,3228.5,1.279]
[1736889395056,12.48232374,3229.7,3229.4,0.30979]
[1736889395357,12.17255374,3229.7,3229.4,3.2078]
[1736889395554,0.30978,3229.5,3229.4,3.2078]
[1736889396150,0.30978,3229.5,3229.4,44.0078]
[1736889397356,0.30978,3229.5,3229.4,3.2078]
[1736889399260,3.86044159,3229.5,3229.4,3.2078]
[1736889399561,4.31944159,3229.5,3229.4,3.2078]
[1736889408159,4.00966159,3229.5,3229.1,0.30981]
[1736889408362,0.30981,3229.2,3229.1,3.51761]
[1736889409661,0.30981,3229.2,3229.1,3.2078]
[1736889414164,3.67666367,3229.2,3229.1,3.2078]
[1736889415970,0.3098,3229.4,3229.3,0.30979]
[1736889416158,3.2078,3229.9,3229.3,2.0535]
[1736889416360,1.27784,3230.0,3229.9,0.30974]
[1736889416566,4.6206047,3230.0,3229.9,0.30974]
[1736889416764,0.80784,3230.0,3229.9,41.10974]
[1736889416968,0.30974,3230.0,3229.9,41.10974]
[1736889418072,4.1362,3230.3,3229.9,40.8]
[1736889418276,0.30971,3230.2,3230.1,0.30971]
[1736889418466,3.59472551,3230.2,3230.1,0.30971]
[1736889418978,0.30972,3230.1,3230.0,4.1886]
[1736889420275,0.30972,3230.1,3230.0,4.49833]